{"text_format":"3","workbook":"xlsx","n_sheets":4,"sheets":["ЦЕЛИ","ПИТАНИЕ","УПРАЖНЕНИЯ","Расчеты диаграммы"],"not_rendered":{"charts":2,"defined_names":19},"read":"whole","date_system":"1900"}

{"sheet":"ЦЕЛИ","index":0,"n_rows":16,"n_cols":11,"rows_kept":16,"merged":[[2,1,3,1],[7,1,8,1]]}
[null,{"$f":"TODAY()","v":"2017-05-05"},"ЦЕЛИ",{"$nulls":6},"Упражнения","Питание"]
[null,"ДАТА НАЧАЛА","ДНЕВНИК ПИТАНИЯ И УПРАЖНЕНИЙ"]
[null,{"$f":"ДатаНачала+121","v":"2017-09-03"},"АНАЛИЗ ПИТАНИЯ"]
[]
[null,"ДАТА ОКОНЧАНИЯ"]
[null,{"v":100,"d":"100.00"}]
[null,"НАЧАЛЬНЫЙ ВЕС"]
[null,{"v":80,"d":"80.00"},"АНАЛИЗ УПРАЖНЕНИЙ"]
[]
[null,"КОНЕЧНЫЙ ВЕС"]
[null,{"$f":"НачальныйВес-КонечныйВес","v":20}]
[null,"ЦЕЛЬ ПОТЕРИ ВЕСА"]
[null,{"$f":"ДатаОкончания-ДатаНачала","v":121}]
[null,"ДНЕЙ НА ПОТЕРЮ ВЕСА"]
[null,{"$f":"ЦельВеса/B13","v":{"v":0.1652892561983471,"d":"0.17"}}]
[null,"ПОТЕРЯ ВЕСА В ДЕНЬ"]

{"sheet":"ПИТАНИЕ","index":1,"n_rows":19,"n_cols":9,"rows_kept":19}
[null,"ПИТАНИЕ",{"$nulls":4},"Цели","Упражнения"]
[null,{"$f":"Подзаголовок","v":"ДНЕВНИК ПИТАНИЯ И УПРАЖНЕНИЙ"}]
[null,"ДАТА","ВРЕМЯ","ОПИСАНИЕ","КАЛОРИИ","УГЛЕВОДЫ","БЕЛКИ","ЖИРЫ","ЗАМЕТКИ"]
[null,{"$f":"ДатаНачала","v":"2017-05-05"},"07:00:00","Кофе",1,0,0,0,"Утренний кофе"]
[null,{"$f":"ДатаНачала","v":"2017-05-05"},"08:00:00","Бублик",10,10,2,10,"Легкий завтрак"]
[null,{"$f":"ДатаНачала","v":"2017-05-05"},"12:00:00","Обед",283,46,18,{"v":3.5,"d":"4"},"Сэндвич с индейкой"]
[null,{"$f":"ДатаНачала","v":"2017-05-05"},"19:00:00","Ужин",500,42,35,25,"Запеканка с картофельными шариками"]
[null,{"$f":"ДатаНачала+1","v":"2017-05-06"},"07:00:00","Кофе",1,0,0,0,"Утренний кофе"]
[null,{"$f":"ДатаНачала+1","v":"2017-05-06"},"08:00:00","Гренка",10,10,2,10,"Легкий завтрак"]
[null,{"$f":"ДатаНачала+1","v":"2017-05-06"},"12:00:00","Обед",189,26,3,8,"Сэндвич"]
[null,{"$f":"ДатаНачала+1","v":"2017-05-06"},"19:00:00","Ужин",477,62,{"v":13.5,"d":"14"},21,"Ужин"]
[null,{"$f":"ДатаНачала+2","v":"2017-05-07"},"07:00:00","Кофе",1,0,0,0,"Утренний кофе"]
[null,{"$f":"ДатаНачала+2","v":"2017-05-07"},"08:00:00","Бублик",245,48,10,{"v":1.5,"d":"2"},"Легкий завтрак"]
[null,{"$f":"ДатаНачала+2","v":"2017-05-07"},"12:00:00","Обед",247,11,43,5,"Салат"]
[null,{"$f":"ДатаНачала+2","v":"2017-05-07"},"19:00:00","Ужин",456,64,32,22,"Ужин"]
[null,{"$f":"ДатаНачала+3","v":"2017-05-08"},"07:00:00","Гренка",10,10,2,10,"Легкий завтрак"]
[null,{"$f":"ДатаНачала+3","v":"2017-05-08"},"10:00:00","Кофе",135,{"v":12.36,"d":"12"},{"v":8.81,"d":"9"},{"v":5.51,"d":"6"},"Латте"]
[null,{"$f":"ДатаНачала+3","v":"2017-05-08"},"12:15:00","Обед",184,7,{"v":5.43,"d":"5"},15,"Салат"]
[null,{"$f":"ДатаНачала+5","v":"2017-05-10"},"19:00:00","Ужин",477,62,{"v":13.5,"d":"14"},21,"Ужин"]

{"sheet":"УПРАЖНЕНИЯ","index":2,"n_rows":20,"n_cols":7,"rows_kept":20}
[null,"УПРАЖНЕНИЯ",{"$nulls":3},"Питание","Цели"]
[null,{"$f":"Подзаголовок","v":"ДНЕВНИК ПИТАНИЯ И УПРАЖНЕНИЙ"}]
[null,"ДАТА","ДЛИТЕЛЬНОСТЬ (МИН)","СОЖЖЕННЫЕ КАЛОРИИ","ЗАМЕТКИ"]
[null,{"$f":"ДатаНачала+4","v":"2017-05-09"},30,120,"Тренировка на беговой дорожке"]
[null,{"$f":"B4+1","v":"2017-05-10"},60,180,"Аэробика с малой ударной нагрузкой"]
[null,{"$f":"B5+1","v":"2017-05-11"},60,350,"Тренировка с предельными нагрузками"]
[null,"2017-05-12",30,150,"Тренировка на беговой дорожке"]
[null,"2017-05-13",25,125,"Бег"]
[null,"2017-05-14",20,285,"Тренировка на беговой дорожке"]
[null,"2017-05-15",40,205,"Бег"]
[null,"2017-05-16",30,335,"Бег"]
[null,"2017-05-17",40,175,"Бег"]
[null,"2017-05-18",45,325,"Тренировка на беговой дорожке"]
[null,"2017-05-19",40,270,"Бег"]
[null,"2017-05-20",20,295,"Тренировка на беговой дорожке"]
[null,"2017-05-21",45,350,"Бег"]
[null,"2017-05-22",35,320,"Бег"]
[null,"2017-05-23",40,290,"Бег"]
[null,{"$f":"B18+1","v":"2017-05-24"},25,265,"Тренировка на беговой дорожке"]
[null,"2017-05-25",20,195,"Бег"]

{"sheet":"Расчеты диаграммы","index":3,"n_rows":36,"n_cols":10,"rows_kept":36,"hidden":true,"merged":[[1,1,1,9],[19,1,19,9]]}
[]
[null,"ДАННЫЕ ДИАГРАММЫ АНАЛИЗА ПИТАНИЯ"]
[]
[null,"Начальная строка",{"$f":"ROW(Питание[[#Headers],[ДАТА]])+1","v":4},"ДАТА","ДЕНЬ","ЖИРЫ","БЕЛКИ","УГЛЕВОДЫ","КАЛОРИИ","Число"]
[null,"Последняя запись о питании",{"$f":"MATCH(9.99E+307,Питание[ДАТА])+НачальнаяСтрокаПитания-1","v":19},{"$f":"IFERROR(IF(INDEX(Питание[],ПоследняяЗаписьОПитании-НачальнаяСтрокаПитания-J5,1)<>\"\",INDEX(Питание[],ПоследняяЗаписьОПитании-НачальнаяСтрокаПитания-J5,1),\"\"),\"\")","v":"2017-05-05"},{"$f":"UPPER(TEXT(D5,\"ДДД\"))","v":"ПТ"},{"$f":"IFERROR((IF(INDEX(Питание[],ПоследняяЗаписьОПитании-НачальнаяСтрокаПитания-J5,1)<>\"\",INDEX(Питание[],ПоследняяЗаписьОПитании-НачальнаяСтрокаПитания-J5,7),NA())),NA())","v":3.5},{"$f":"IFERROR((IF(INDEX(Питание[],ПоследняяЗаписьОПитании-НачальнаяСтрокаПитания-J5,1)<>\"\",INDEX(Питание[],ПоследняяЗаписьОПитании-НачальнаяСтрокаПитания-J5,6),NA())),NA())","v":18},{"$f":"IFERROR((IF(INDEX(Питание[],ПоследняяЗаписьОПитании-НачальнаяСтрокаПитания-J5,1)<>\"\",INDEX(Питание[],ПоследняяЗаписьОПитании-НачальнаяСтрокаПитания-J5,5),NA())),NA())","v":46},{"$f":"IFERROR((IF(INDEX(Питание[],ПоследняяЗаписьОПитании-НачальнаяСтрокаПитания-J5,1)<>\"\",INDEX(Питание[],ПоследняяЗаписьОПитании-НачальнаяСтрокаПитания-J5,4),NA())),NA())","v":283},12]
[{"$nulls":3},{"$f":"IFERROR(IF(INDEX(Питание[],ПоследняяЗаписьОПитании-НачальнаяСтрокаПитания-J6,1)<>\"\",INDEX(Питание[],ПоследняяЗаписьОПитании-НачальнаяСтрокаПитания-J6,1),\"\"),\"\")","v":"2017-05-05"},"ПТ",{"$f":"IFERROR((IF(INDEX(Питание[],ПоследняяЗаписьОПитании-НачальнаяСтрокаПитания-J6,1)<>\"\",INDEX(Питание[],ПоследняяЗаписьОПитании-НачальнаяСтрокаПитания-J6,7),NA())),NA())","v":25},{"$f":"IFERROR((IF(INDEX(Питание[],ПоследняяЗаписьОПитании-НачальнаяСтрокаПитания-J6,1)<>\"\",INDEX(Питание[],ПоследняяЗаписьОПитании-НачальнаяСтрокаПитания-J6,6),NA())),NA())","v":35},{"$f":"IFERROR((IF(INDEX(Питание[],ПоследняяЗаписьОПитании-НачальнаяСтрокаПитания-J6,1)<>\"\",INDEX(Питание[],ПоследняяЗаписьОПитании-НачальнаяСтрокаПитания-J6,5),NA())),NA())","v":42},{"$f":"IFERROR((IF(INDEX(Питание[],ПоследняяЗаписьОПитании-НачальнаяСтрокаПитания-J6,1)<>\"\",INDEX(Питание[],ПоследняяЗаписьОПитании-НачальнаяСтрокаПитания-J6,4),NA())),NA())","v":500},11]
[{"$nulls":3},{"$f":"IFERROR(IF(INDEX(Питание[],ПоследняяЗаписьОПитании-НачальнаяСтрокаПитания-J7,1)<>\"\",INDEX(Питание[],ПоследняяЗаписьОПитании-НачальнаяСтрокаПитания-J7,1),\"\"),\"\")","v":"2017-05-06"},"СБ",{"$f":"IFERROR((IF(INDEX(Питание[],ПоследняяЗаписьОПитании-НачальнаяСтрокаПитания-J7,1)<>\"\",INDEX(Питание[],ПоследняяЗаписьОПитании-НачальнаяСтрокаПитания-J7,7),NA())),NA())","v":0},{"$f":"IFERROR((IF(INDEX(Питание[],ПоследняяЗаписьОПитании-НачальнаяСтрокаПитания-J7,1)<>\"\",INDEX(Питание[],ПоследняяЗаписьОПитании-НачальнаяСтрокаПитания-J7,6),NA())),NA())","v":0},{"$f":"IFERROR((IF(INDEX(Питание[],ПоследняяЗаписьОПитании-НачальнаяСтрокаПитания-J7,1)<>\"\",INDEX(Питание[],ПоследняяЗаписьОПитании-НачальнаяСтрокаПитания-J7,5),NA())),NA())","v":0},{"$f":"IFERROR((IF(INDEX(Питание[],ПоследняяЗаписьОПитании-НачальнаяСтрокаПитания-J7,1)<>\"\",INDEX(Питание[],ПоследняяЗаписьОПитании-НачальнаяСтрокаПитания-J7,4),NA())),NA())","v":1},10]
[{"$nulls":3},{"$f":"IFERROR(IF(INDEX(Питание[],ПоследняяЗаписьОПитании-НачальнаяСтрокаПитания-J8,1)<>\"\",INDEX(Питание[],ПоследняяЗаписьОПитании-НачальнаяСтрокаПитания-J8,1),\"\"),\"\")","v":"2017-05-06"},"СБ",{"$f":"IFERROR((IF(INDEX(Питание[],ПоследняяЗаписьОПитании-НачальнаяСтрокаПитания-J8,1)<>\"\",INDEX(Питание[],ПоследняяЗаписьОПитании-НачальнаяСтрокаПитания-J8,7),NA())),NA())","v":10},{"$f":"IFERROR((IF(INDEX(Питание[],ПоследняяЗаписьОПитании-НачальнаяСтрокаПитания-J8,1)<>\"\",INDEX(Питание[],ПоследняяЗаписьОПитании-НачальнаяСтрокаПитания-J8,6),NA())),NA())","v":2},{"$f":"IFERROR((IF(INDEX(Питание[],ПоследняяЗаписьОПитании-НачальнаяСтрокаПитания-J8,1)<>\"\",INDEX(Питание[],ПоследняяЗаписьОПитании-НачальнаяСтрокаПитания-J8,5),NA())),NA())","v":10},{"$f":"IFERROR((IF(INDEX(Питание[],ПоследняяЗаписьОПитании-НачальнаяСтрокаПитания-J8,1)<>\"\",INDEX(Питание[],ПоследняяЗаписьОПитании-НачальнаяСтрокаПитания-J8,4),NA())),NA())","v":10},9]
[{"$nulls":3},{"$f":"IFERROR(IF(INDEX(Питание[],ПоследняяЗаписьОПитании-НачальнаяСтрокаПитания-J9,1)<>\"\",INDEX(Питание[],ПоследняяЗаписьОПитании-НачальнаяСтрокаПитания-J9,1),\"\"),\"\")","v":"2017-05-06"},"СБ",{"$f":"IFERROR((IF(INDEX(Питание[],ПоследняяЗаписьОПитании-НачальнаяСтрокаПитания-J9,1)<>\"\",INDEX(Питание[],ПоследняяЗаписьОПитании-НачальнаяСтрокаПитания-J9,7),NA())),NA())","v":8},{"$f":"IFERROR((IF(INDEX(Питание[],ПоследняяЗаписьОПитании-НачальнаяСтрокаПитания-J9,1)<>\"\",INDEX(Питание[],ПоследняяЗаписьОПитании-НачальнаяСтрокаПитания-J9,6),NA())),NA())","v":3},{"$f":"IFERROR((IF(INDEX(Питание[],ПоследняяЗаписьОПитании-НачальнаяСтрокаПитания-J9,1)<>\"\",INDEX(Питание[],ПоследняяЗаписьОПитании-НачальнаяСтрокаПитания-J9,5),NA())),NA())","v":26},{"$f":"IFERROR((IF(INDEX(Питание[],ПоследняяЗаписьОПитании-НачальнаяСтрокаПитания-J9,1)<>\"\",INDEX(Питание[],ПоследняяЗаписьОПитании-НачальнаяСтрокаПитания-J9,4),NA())),NA())","v":189},8]
[{"$nulls":3},{"$f":"IFERROR(IF(INDEX(Питание[],ПоследняяЗаписьОПитании-НачальнаяСтрокаПитания-J10,1)<>\"\",INDEX(Питание[],ПоследняяЗаписьОПитании-НачальнаяСтрокаПитания-J10,1),\"\"),\"\")","v":"2017-05-06"},"СБ",{"$f":"IFERROR((IF(INDEX(Питание[],ПоследняяЗаписьОПитании-НачальнаяСтрокаПитания-J10,1)<>\"\",INDEX(Питание[],ПоследняяЗаписьОПитании-НачальнаяСтрокаПитания-J10,7),NA())),NA())","v":21},{"$f":"IFERROR((IF(INDEX(Питание[],ПоследняяЗаписьОПитании-НачальнаяСтрокаПитания-J10,1)<>\"\",INDEX(Питание[],ПоследняяЗаписьОПитании-НачальнаяСтрокаПитания-J10,6),NA())),NA())","v":13.5},{"$f":"IFERROR((IF(INDEX(Питание[],ПоследняяЗаписьОПитании-НачальнаяСтрокаПитания-J10,1)<>\"\",INDEX(Питание[],ПоследняяЗаписьОПитании-НачальнаяСтрокаПитания-J10,5),NA())),NA())","v":62},{"$f":"IFERROR((IF(INDEX(Питание[],ПоследняяЗаписьОПитании-НачальнаяСтрокаПитания-J10,1)<>\"\",INDEX(Питание[],ПоследняяЗаписьОПитании-НачальнаяСтрокаПитания-J10,4),NA())),NA())","v":477},7]
[{"$nulls":3},{"$f":"IFERROR(IF(INDEX(Питание[],ПоследняяЗаписьОПитании-НачальнаяСтрокаПитания-J11,1)<>\"\",INDEX(Питание[],ПоследняяЗаписьОПитании-НачальнаяСтрокаПитания-J11,1),\"\"),\"\")","v":"2017-05-07"},"ВС",{"$f":"IFERROR((IF(INDEX(Питание[],ПоследняяЗаписьОПитании-НачальнаяСтрокаПитания-J11,1)<>\"\",INDEX(Питание[],ПоследняяЗаписьОПитании-НачальнаяСтрокаПитания-J11,7),NA())),NA())","v":0},{"$f":"IFERROR((IF(INDEX(Питание[],ПоследняяЗаписьОПитании-НачальнаяСтрокаПитания-J11,1)<>\"\",INDEX(Питание[],ПоследняяЗаписьОПитании-НачальнаяСтрокаПитания-J11,6),NA())),NA())","v":0},{"$f":"IFERROR((IF(INDEX(Питание[],ПоследняяЗаписьОПитании-НачальнаяСтрокаПитания-J11,1)<>\"\",INDEX(Питание[],ПоследняяЗаписьОПитании-НачальнаяСтрокаПитания-J11,5),NA())),NA())","v":0},{"$f":"IFERROR((IF(INDEX(Питание[],ПоследняяЗаписьОПитании-НачальнаяСтрокаПитания-J11,1)<>\"\",INDEX(Питание[],ПоследняяЗаписьОПитании-НачальнаяСтрокаПитания-J11,4),NA())),NA())","v":1},6]
[{"$nulls":3},{"$f":"IFERROR(IF(INDEX(Питание[],ПоследняяЗаписьОПитании-НачальнаяСтрокаПитания-J12,1)<>\"\",INDEX(Питание[],ПоследняяЗаписьОПитании-НачальнаяСтрокаПитания-J12,1),\"\"),\"\")","v":"2017-05-07"},"ВС",{"$f":"IFERROR((IF(INDEX(Питание[],ПоследняяЗаписьОПитании-НачальнаяСтрокаПитания-J12,1)<>\"\",INDEX(Питание[],ПоследняяЗаписьОПитании-НачальнаяСтрокаПитания-J12,7),NA())),NA())","v":1.5},{"$f":"IFERROR((IF(INDEX(Питание[],ПоследняяЗаписьОПитании-НачальнаяСтрокаПитания-J12,1)<>\"\",INDEX(Питание[],ПоследняяЗаписьОПитании-НачальнаяСтрокаПитания-J12,6),NA())),NA())","v":10},{"$f":"IFERROR((IF(INDEX(Питание[],ПоследняяЗаписьОПитании-НачальнаяСтрокаПитания-J12,1)<>\"\",INDEX(Питание[],ПоследняяЗаписьОПитании-НачальнаяСтрокаПитания-J12,5),NA())),NA())","v":48},{"$f":"IFERROR((IF(INDEX(Питание[],ПоследняяЗаписьОПитании-НачальнаяСтрокаПитания-J12,1)<>\"\",INDEX(Питание[],ПоследняяЗаписьОПитании-НачальнаяСтрокаПитания-J12,4),NA())),NA())","v":245},5]
[{"$nulls":3},{"$f":"IFERROR(IF(INDEX(Питание[],ПоследняяЗаписьОПитании-НачальнаяСтрокаПитания-J13,1)<>\"\",INDEX(Питание[],ПоследняяЗаписьОПитании-НачальнаяСтрокаПитания-J13,1),\"\"),\"\")","v":"2017-05-07"},"ВС",{"$f":"IFERROR((IF(INDEX(Питание[],ПоследняяЗаписьОПитании-НачальнаяСтрокаПитания-J13,1)<>\"\",INDEX(Питание[],ПоследняяЗаписьОПитании-НачальнаяСтрокаПитания-J13,7),NA())),NA())","v":5},{"$f":"IFERROR((IF(INDEX(Питание[],ПоследняяЗаписьОПитании-НачальнаяСтрокаПитания-J13,1)<>\"\",INDEX(Питание[],ПоследняяЗаписьОПитании-НачальнаяСтрокаПитания-J13,6),NA())),NA())","v":43},{"$f":"IFERROR((IF(INDEX(Питание[],ПоследняяЗаписьОПитании-НачальнаяСтрокаПитания-J13,1)<>\"\",INDEX(Питание[],ПоследняяЗаписьОПитании-НачальнаяСтрокаПитания-J13,5),NA())),NA())","v":11},{"$f":"IFERROR((IF(INDEX(Питание[],ПоследняяЗаписьОПитании-НачальнаяСтрокаПитания-J13,1)<>\"\",INDEX(Питание[],ПоследняяЗаписьОПитании-НачальнаяСтрокаПитания-J13,4),NA())),NA())","v":247},4]
[{"$nulls":3},{"$f":"IFERROR(IF(INDEX(Питание[],ПоследняяЗаписьОПитании-НачальнаяСтрокаПитания-J14,1)<>\"\",INDEX(Питание[],ПоследняяЗаписьОПитании-НачальнаяСтрокаПитания-J14,1),\"\"),\"\")","v":"2017-05-07"},"ВС",{"$f":"IFERROR((IF(INDEX(Питание[],ПоследняяЗаписьОПитании-НачальнаяСтрокаПитания-J14,1)<>\"\",INDEX(Питание[],ПоследняяЗаписьОПитании-НачальнаяСтрокаПитания-J14,7),NA())),NA())","v":22},{"$f":"IFERROR((IF(INDEX(Питание[],ПоследняяЗаписьОПитании-НачальнаяСтрокаПитания-J14,1)<>\"\",INDEX(Питание[],ПоследняяЗаписьОПитании-НачальнаяСтрокаПитания-J14,6),NA())),NA())","v":32},{"$f":"IFERROR((IF(INDEX(Питание[],ПоследняяЗаписьОПитании-НачальнаяСтрокаПитания-J14,1)<>\"\",INDEX(Питание[],ПоследняяЗаписьОПитании-НачальнаяСтрокаПитания-J14,5),NA())),NA())","v":64},{"$f":"IFERROR((IF(INDEX(Питание[],ПоследняяЗаписьОПитании-НачальнаяСтрокаПитания-J14,1)<>\"\",INDEX(Питание[],ПоследняяЗаписьОПитании-НачальнаяСтрокаПитания-J14,4),NA())),NA())","v":456},3]
[{"$nulls":3},{"$f":"IFERROR(IF(INDEX(Питание[],ПоследняяЗаписьОПитании-НачальнаяСтрокаПитания-J15,1)<>\"\",INDEX(Питание[],ПоследняяЗаписьОПитании-НачальнаяСтрокаПитания-J15,1),\"\"),\"\")","v":"2017-05-08"},"ПН",{"$f":"IFERROR((IF(INDEX(Питание[],ПоследняяЗаписьОПитании-НачальнаяСтрокаПитания-J15,1)<>\"\",INDEX(Питание[],ПоследняяЗаписьОПитании-НачальнаяСтрокаПитания-J15,7),NA())),NA())","v":10},{"$f":"IFERROR((IF(INDEX(Питание[],ПоследняяЗаписьОПитании-НачальнаяСтрокаПитания-J15,1)<>\"\",INDEX(Питание[],ПоследняяЗаписьОПитании-НачальнаяСтрокаПитания-J15,6),NA())),NA())","v":2},{"$f":"IFERROR((IF(INDEX(Питание[],ПоследняяЗаписьОПитании-НачальнаяСтрокаПитания-J15,1)<>\"\",INDEX(Питание[],ПоследняяЗаписьОПитании-НачальнаяСтрокаПитания-J15,5),NA())),NA())","v":10},{"$f":"IFERROR((IF(INDEX(Питание[],ПоследняяЗаписьОПитании-НачальнаяСтрокаПитания-J15,1)<>\"\",INDEX(Питание[],ПоследняяЗаписьОПитании-НачальнаяСтрокаПитания-J15,4),NA())),NA())","v":10},2]
[{"$nulls":3},{"$f":"IFERROR(IF(INDEX(Питание[],ПоследняяЗаписьОПитании-НачальнаяСтрокаПитания-J16,1)<>\"\",INDEX(Питание[],ПоследняяЗаписьОПитании-НачальнаяСтрокаПитания-J16,1),\"\"),\"\")","v":"2017-05-08"},"ПН",{"$f":"IFERROR((IF(INDEX(Питание[],ПоследняяЗаписьОПитании-НачальнаяСтрокаПитания-J16,1)<>\"\",INDEX(Питание[],ПоследняяЗаписьОПитании-НачальнаяСтрокаПитания-J16,7),NA())),NA())","v":5.51},{"$f":"IFERROR((IF(INDEX(Питание[],ПоследняяЗаписьОПитании-НачальнаяСтрокаПитания-J16,1)<>\"\",INDEX(Питание[],ПоследняяЗаписьОПитании-НачальнаяСтрокаПитания-J16,6),NA())),NA())","v":8.81},{"$f":"IFERROR((IF(INDEX(Питание[],ПоследняяЗаписьОПитании-НачальнаяСтрокаПитания-J16,1)<>\"\",INDEX(Питание[],ПоследняяЗаписьОПитании-НачальнаяСтрокаПитания-J16,5),NA())),NA())","v":12.36},{"$f":"IFERROR((IF(INDEX(Питание[],ПоследняяЗаписьОПитании-НачальнаяСтрокаПитания-J16,1)<>\"\",INDEX(Питание[],ПоследняяЗаписьОПитании-НачальнаяСтрокаПитания-J16,4),NA())),NA())","v":135},1]
[{"$nulls":3},{"$f":"IFERROR(IF(INDEX(Питание[],ПоследняяЗаписьОПитании-НачальнаяСтрокаПитания-J17,1)<>\"\",INDEX(Питание[],ПоследняяЗаписьОПитании-НачальнаяСтрокаПитания-J17,1),\"\"),\"\")","v":"2017-05-08"},"ПН",{"$f":"IFERROR((IF(INDEX(Питание[],ПоследняяЗаписьОПитании-НачальнаяСтрокаПитания-J17,1)<>\"\",INDEX(Питание[],ПоследняяЗаписьОПитании-НачальнаяСтрокаПитания-J17,7),NA())),NA())","v":15},{"$f":"IFERROR((IF(INDEX(Питание[],ПоследняяЗаписьОПитании-НачальнаяСтрокаПитания-J17,1)<>\"\",INDEX(Питание[],ПоследняяЗаписьОПитании-НачальнаяСтрокаПитания-J17,6),NA())),NA())","v":5.43},{"$f":"IFERROR((IF(INDEX(Питание[],ПоследняяЗаписьОПитании-НачальнаяСтрокаПитания-J17,1)<>\"\",INDEX(Питание[],ПоследняяЗаписьОПитании-НачальнаяСтрокаПитания-J17,5),NA())),NA())","v":7},{"$f":"IFERROR((IF(INDEX(Питание[],ПоследняяЗаписьОПитании-НачальнаяСтрокаПитания-J17,1)<>\"\",INDEX(Питание[],ПоследняяЗаписьОПитании-НачальнаяСтрокаПитания-J17,4),NA())),NA())","v":184},0]
[{"$nulls":3},{"$f":"IFERROR(IF(INDEX(Питание[],ПоследняяЗаписьОПитании-НачальнаяСтрокаПитания-J18,1)<>\"\",INDEX(Питание[],ПоследняяЗаписьОПитании-НачальнаяСтрокаПитания-J18,1)),\"\")","v":"2017-05-10"},"СР",{"$f":"IFERROR((IF(INDEX(Питание[],ПоследняяЗаписьОПитании-НачальнаяСтрокаПитания-J18,1)<>\"\",INDEX(Питание[],ПоследняяЗаписьОПитании-НачальнаяСтрокаПитания-J18,7),NA())),NA())","v":21},{"$f":"IFERROR((IF(INDEX(Питание[],ПоследняяЗаписьОПитании-НачальнаяСтрокаПитания-J18,1)<>\"\",INDEX(Питание[],ПоследняяЗаписьОПитании-НачальнаяСтрокаПитания-J18,6),NA())),NA())","v":13.5},{"$f":"IFERROR((IF(INDEX(Питание[],ПоследняяЗаписьОПитании-НачальнаяСтрокаПитания-J18,1)<>\"\",INDEX(Питание[],ПоследняяЗаписьОПитании-НачальнаяСтрокаПитания-J18,5),NA())),NA())","v":62},{"$f":"IFERROR((IF(INDEX(Питание[],ПоследняяЗаписьОПитании-НачальнаяСтрокаПитания-J18,1)<>\"\",INDEX(Питание[],ПоследняяЗаписьОПитании-НачальнаяСтрокаПитания-J18,4),NA())),NA())","v":477},-1]
[]
[null,"ДАННЫЕ ДИАГРАММЫ АНАЛИЗА УПРАЖНЕНИЙ"]
[]
[null,"Начальная строка",{"$f":"ROW(Упражнения[[#Headers],[ДАТА]])+1","v":4},"ДАТА","ДЕНЬ","ДЛИТЕЛЬНОСТЬ (МИН)","СОЖЖЕННЫЕ КАЛОРИИ","Число"]
[null,"Последняя запись об упражнениях",{"$f":"MATCH(9.99E+307,Упражнения[ДАТА])+НачальнаяСтрокаУпражнений-1","v":20},{"$f":"IFERROR(IF(INDEX(Упражнения[],ПоследняяЗаписьОбУпражнениях-НачальнаяСтрокаУпражнений-H23,1)<>\"\",INDEX(Упражнения[],ПоследняяЗаписьОбУпражнениях-НачальнаяСтрокаУпражнений-H23,1)),\"\")","v":"2017-05-25"},{"$f":"UPPER(TEXT(D23,\"ДДД\"))","v":"ЧТ"},{"$f":"IFERROR((IF(INDEX(Упражнения[],ПоследняяЗаписьОбУпражнениях-НачальнаяСтрокаУпражнений-H23,1)<>\"\",INDEX(Упражнения[],ПоследняяЗаписьОбУпражнениях-НачальнаяСтрокаУпражнений-H23,2),0)),0)","v":20},{"$f":"IFERROR((IF(INDEX(Упражнения[],ПоследняяЗаписьОбУпражнениях-НачальнаяСтрокаУпражнений-H23,2)<>\"\",INDEX(Упражнения[],ПоследняяЗаписьОбУпражнениях-НачальнаяСтрокаУпражнений-H23,3),0)),0)","v":195},-1]
[{"$nulls":3},{"$f":"IFERROR(IF(INDEX(Упражнения[],ПоследняяЗаписьОбУпражнениях-НачальнаяСтрокаУпражнений-H24,1)<>\"\",INDEX(Упражнения[],ПоследняяЗаписьОбУпражнениях-НачальнаяСтрокаУпражнений-H24,1)),\"\")","v":"2017-05-24"},"СР",{"$f":"IFERROR((IF(INDEX(Упражнения[],ПоследняяЗаписьОбУпражнениях-НачальнаяСтрокаУпражнений-H24,1)<>\"\",INDEX(Упражнения[],ПоследняяЗаписьОбУпражнениях-НачальнаяСтрокаУпражнений-H24,2),0)),0)","v":25},{"$f":"IFERROR((IF(INDEX(Упражнения[],ПоследняяЗаписьОбУпражнениях-НачальнаяСтрокаУпражнений-H24,2)<>\"\",INDEX(Упражнения[],ПоследняяЗаписьОбУпражнениях-НачальнаяСтрокаУпражнений-H24,3),0)),0)","v":265},0]
[{"$nulls":3},{"$f":"IFERROR(IF(INDEX(Упражнения[],ПоследняяЗаписьОбУпражнениях-НачальнаяСтрокаУпражнений-H25,1)<>\"\",INDEX(Упражнения[],ПоследняяЗаписьОбУпражнениях-НачальнаяСтрокаУпражнений-H25,1)),\"\")","v":"2017-05-23"},"ВТ",{"$f":"IFERROR((IF(INDEX(Упражнения[],ПоследняяЗаписьОбУпражнениях-НачальнаяСтрокаУпражнений-H25,1)<>\"\",INDEX(Упражнения[],ПоследняяЗаписьОбУпражнениях-НачальнаяСтрокаУпражнений-H25,2),0)),0)","v":40},{"$f":"IFERROR((IF(INDEX(Упражнения[],ПоследняяЗаписьОбУпражнениях-НачальнаяСтрокаУпражнений-H25,2)<>\"\",INDEX(Упражнения[],ПоследняяЗаписьОбУпражнениях-НачальнаяСтрокаУпражнений-H25,3),0)),0)","v":290},1]
[{"$nulls":3},{"$f":"IFERROR(IF(INDEX(Упражнения[],ПоследняяЗаписьОбУпражнениях-НачальнаяСтрокаУпражнений-H26,1)<>\"\",INDEX(Упражнения[],ПоследняяЗаписьОбУпражнениях-НачальнаяСтрокаУпражнений-H26,1)),\"\")","v":"2017-05-22"},"ПН",{"$f":"IFERROR((IF(INDEX(Упражнения[],ПоследняяЗаписьОбУпражнениях-НачальнаяСтрокаУпражнений-H26,1)<>\"\",INDEX(Упражнения[],ПоследняяЗаписьОбУпражнениях-НачальнаяСтрокаУпражнений-H26,2),0)),0)","v":35},{"$f":"IFERROR((IF(INDEX(Упражнения[],ПоследняяЗаписьОбУпражнениях-НачальнаяСтрокаУпражнений-H26,2)<>\"\",INDEX(Упражнения[],ПоследняяЗаписьОбУпражнениях-НачальнаяСтрокаУпражнений-H26,3),0)),0)","v":320},2]
[{"$nulls":3},{"$f":"IFERROR(IF(INDEX(Упражнения[],ПоследняяЗаписьОбУпражнениях-НачальнаяСтрокаУпражнений-H27,1)<>\"\",INDEX(Упражнения[],ПоследняяЗаписьОбУпражнениях-НачальнаяСтрокаУпражнений-H27,1)),\"\")","v":"2017-05-21"},"ВС",{"$f":"IFERROR((IF(INDEX(Упражнения[],ПоследняяЗаписьОбУпражнениях-НачальнаяСтрокаУпражнений-H27,1)<>\"\",INDEX(Упражнения[],ПоследняяЗаписьОбУпражнениях-НачальнаяСтрокаУпражнений-H27,2),0)),0)","v":45},{"$f":"IFERROR((IF(INDEX(Упражнения[],ПоследняяЗаписьОбУпражнениях-НачальнаяСтрокаУпражнений-H27,2)<>\"\",INDEX(Упражнения[],ПоследняяЗаписьОбУпражнениях-НачальнаяСтрокаУпражнений-H27,3),0)),0)","v":350},3]
[{"$nulls":3},{"$f":"IFERROR(IF(INDEX(Упражнения[],ПоследняяЗаписьОбУпражнениях-НачальнаяСтрокаУпражнений-H28,1)<>\"\",INDEX(Упражнения[],ПоследняяЗаписьОбУпражнениях-НачальнаяСтрокаУпражнений-H28,1)),\"\")","v":"2017-05-20"},"СБ",{"$f":"IFERROR((IF(INDEX(Упражнения[],ПоследняяЗаписьОбУпражнениях-НачальнаяСтрокаУпражнений-H28,1)<>\"\",INDEX(Упражнения[],ПоследняяЗаписьОбУпражнениях-НачальнаяСтрокаУпражнений-H28,2),0)),0)","v":20},{"$f":"IFERROR((IF(INDEX(Упражнения[],ПоследняяЗаписьОбУпражнениях-НачальнаяСтрокаУпражнений-H28,2)<>\"\",INDEX(Упражнения[],ПоследняяЗаписьОбУпражнениях-НачальнаяСтрокаУпражнений-H28,3),0)),0)","v":295},4]
[{"$nulls":3},{"$f":"IFERROR(IF(INDEX(Упражнения[],ПоследняяЗаписьОбУпражнениях-НачальнаяСтрокаУпражнений-H29,1)<>\"\",INDEX(Упражнения[],ПоследняяЗаписьОбУпражнениях-НачальнаяСтрокаУпражнений-H29,1)),\"\")","v":"2017-05-19"},"ПТ",{"$f":"IFERROR((IF(INDEX(Упражнения[],ПоследняяЗаписьОбУпражнениях-НачальнаяСтрокаУпражнений-H29,1)<>\"\",INDEX(Упражнения[],ПоследняяЗаписьОбУпражнениях-НачальнаяСтрокаУпражнений-H29,2),0)),0)","v":40},{"$f":"IFERROR((IF(INDEX(Упражнения[],ПоследняяЗаписьОбУпражнениях-НачальнаяСтрокаУпражнений-H29,2)<>\"\",INDEX(Упражнения[],ПоследняяЗаписьОбУпражнениях-НачальнаяСтрокаУпражнений-H29,3),0)),0)","v":270},5]
[{"$nulls":3},{"$f":"IFERROR(IF(INDEX(Упражнения[],ПоследняяЗаписьОбУпражнениях-НачальнаяСтрокаУпражнений-H30,1)<>\"\",INDEX(Упражнения[],ПоследняяЗаписьОбУпражнениях-НачальнаяСтрокаУпражнений-H30,1)),\"\")","v":"2017-05-18"},"ЧТ",{"$f":"IFERROR((IF(INDEX(Упражнения[],ПоследняяЗаписьОбУпражнениях-НачальнаяСтрокаУпражнений-H30,1)<>\"\",INDEX(Упражнения[],ПоследняяЗаписьОбУпражнениях-НачальнаяСтрокаУпражнений-H30,2),0)),0)","v":45},{"$f":"IFERROR((IF(INDEX(Упражнения[],ПоследняяЗаписьОбУпражнениях-НачальнаяСтрокаУпражнений-H30,2)<>\"\",INDEX(Упражнения[],ПоследняяЗаписьОбУпражнениях-НачальнаяСтрокаУпражнений-H30,3),0)),0)","v":325},6]
[{"$nulls":3},{"$f":"IFERROR(IF(INDEX(Упражнения[],ПоследняяЗаписьОбУпражнениях-НачальнаяСтрокаУпражнений-H31,1)<>\"\",INDEX(Упражнения[],ПоследняяЗаписьОбУпражнениях-НачальнаяСтрокаУпражнений-H31,1)),\"\")","v":"2017-05-17"},"СР",{"$f":"IFERROR((IF(INDEX(Упражнения[],ПоследняяЗаписьОбУпражнениях-НачальнаяСтрокаУпражнений-H31,1)<>\"\",INDEX(Упражнения[],ПоследняяЗаписьОбУпражнениях-НачальнаяСтрокаУпражнений-H31,2),0)),0)","v":40},{"$f":"IFERROR((IF(INDEX(Упражнения[],ПоследняяЗаписьОбУпражнениях-НачальнаяСтрокаУпражнений-H31,2)<>\"\",INDEX(Упражнения[],ПоследняяЗаписьОбУпражнениях-НачальнаяСтрокаУпражнений-H31,3),0)),0)","v":175},7]
[{"$nulls":3},{"$f":"IFERROR(IF(INDEX(Упражнения[],ПоследняяЗаписьОбУпражнениях-НачальнаяСтрокаУпражнений-H32,1)<>\"\",INDEX(Упражнения[],ПоследняяЗаписьОбУпражнениях-НачальнаяСтрокаУпражнений-H32,1)),\"\")","v":"2017-05-16"},"ВТ",{"$f":"IFERROR((IF(INDEX(Упражнения[],ПоследняяЗаписьОбУпражнениях-НачальнаяСтрокаУпражнений-H32,1)<>\"\",INDEX(Упражнения[],ПоследняяЗаписьОбУпражнениях-НачальнаяСтрокаУпражнений-H32,2),0)),0)","v":30},{"$f":"IFERROR((IF(INDEX(Упражнения[],ПоследняяЗаписьОбУпражнениях-НачальнаяСтрокаУпражнений-H32,2)<>\"\",INDEX(Упражнения[],ПоследняяЗаписьОбУпражнениях-НачальнаяСтрокаУпражнений-H32,3),0)),0)","v":335},8]
[{"$nulls":3},{"$f":"IFERROR(IF(INDEX(Упражнения[],ПоследняяЗаписьОбУпражнениях-НачальнаяСтрокаУпражнений-H33,1)<>\"\",INDEX(Упражнения[],ПоследняяЗаписьОбУпражнениях-НачальнаяСтрокаУпражнений-H33,1)),\"\")","v":"2017-05-15"},"ПН",{"$f":"IFERROR((IF(INDEX(Упражнения[],ПоследняяЗаписьОбУпражнениях-НачальнаяСтрокаУпражнений-H33,1)<>\"\",INDEX(Упражнения[],ПоследняяЗаписьОбУпражнениях-НачальнаяСтрокаУпражнений-H33,2),0)),0)","v":40},{"$f":"IFERROR((IF(INDEX(Упражнения[],ПоследняяЗаписьОбУпражнениях-НачальнаяСтрокаУпражнений-H33,2)<>\"\",INDEX(Упражнения[],ПоследняяЗаписьОбУпражнениях-НачальнаяСтрокаУпражнений-H33,3),0)),0)","v":205},9]
[{"$nulls":3},{"$f":"IFERROR(IF(INDEX(Упражнения[],ПоследняяЗаписьОбУпражнениях-НачальнаяСтрокаУпражнений-H34,1)<>\"\",INDEX(Упражнения[],ПоследняяЗаписьОбУпражнениях-НачальнаяСтрокаУпражнений-H34,1)),\"\")","v":"2017-05-14"},"ВС",{"$f":"IFERROR((IF(INDEX(Упражнения[],ПоследняяЗаписьОбУпражнениях-НачальнаяСтрокаУпражнений-H34,1)<>\"\",INDEX(Упражнения[],ПоследняяЗаписьОбУпражнениях-НачальнаяСтрокаУпражнений-H34,2),0)),0)","v":20},{"$f":"IFERROR((IF(INDEX(Упражнения[],ПоследняяЗаписьОбУпражнениях-НачальнаяСтрокаУпражнений-H34,2)<>\"\",INDEX(Упражнения[],ПоследняяЗаписьОбУпражнениях-НачальнаяСтрокаУпражнений-H34,3),0)),0)","v":285},10]
[{"$nulls":3},{"$f":"IFERROR(IF(INDEX(Упражнения[],ПоследняяЗаписьОбУпражнениях-НачальнаяСтрокаУпражнений-H35,1)<>\"\",INDEX(Упражнения[],ПоследняяЗаписьОбУпражнениях-НачальнаяСтрокаУпражнений-H35,1)),\"\")","v":"2017-05-13"},"СБ",{"$f":"IFERROR((IF(INDEX(Упражнения[],ПоследняяЗаписьОбУпражнениях-НачальнаяСтрокаУпражнений-H35,1)<>\"\",INDEX(Упражнения[],ПоследняяЗаписьОбУпражнениях-НачальнаяСтрокаУпражнений-H35,2),0)),0)","v":25},{"$f":"IFERROR((IF(INDEX(Упражнения[],ПоследняяЗаписьОбУпражнениях-НачальнаяСтрокаУпражнений-H35,2)<>\"\",INDEX(Упражнения[],ПоследняяЗаписьОбУпражнениях-НачальнаяСтрокаУпражнений-H35,3),0)),0)","v":125},11]
[{"$nulls":3},{"$f":"IFERROR(IF(INDEX(Упражнения[],ПоследняяЗаписьОбУпражнениях-НачальнаяСтрокаУпражнений-H36,1)<>\"\",INDEX(Упражнения[],ПоследняяЗаписьОбУпражнениях-НачальнаяСтрокаУпражнений-H36,1)),\"\")","v":"2017-05-12"},"ПТ",{"$f":"IFERROR((IF(INDEX(Упражнения[],ПоследняяЗаписьОбУпражнениях-НачальнаяСтрокаУпражнений-H36,1)<>\"\",INDEX(Упражнения[],ПоследняяЗаписьОбУпражнениях-НачальнаяСтрокаУпражнений-H36,2),0)),0)","v":30},{"$f":"IFERROR((IF(INDEX(Упражнения[],ПоследняяЗаписьОбУпражнениях-НачальнаяСтрокаУпражнений-H36,2)<>\"\",INDEX(Упражнения[],ПоследняяЗаписьОбУпражнениях-НачальнаяСтрокаУпражнений-H36,3),0)),0)","v":150},12]